[Event "Early-Titled-Tuesday-Blitz-February-13-2024"]
[Site "Chess.com"]
[Date "2024.02.13"]
[Round "9"]
[White "RaugintaBulba"]
[Black "sharkarton"]
[Result "0-1"]
[WhiteElo "2425"]
[BlackElo "2533"]
[TimeControl "180+1"]
[EndTime "9:48:01 PST"]
[Termination "sharkarton won on time"]

1. e4 {[%clk 0:03:00.9]} 1... c5 {[%clk 0:02:55.2]} 2. c3 {[%clk 0:03:00.6]}
2... d5 {[%clk 0:02:52.6]} 3. e5 {[%clk 0:02:59.6]} 3... Nc6 {[%clk 0:02:52.3]}
4. Nf3 {[%clk 0:02:58.8]} 4... Bg4 {[%clk 0:02:51.8]} 5. d4 {[%clk 0:02:50.2]}
5... e6 {[%clk 0:02:49.2]} 6. Be2 {[%clk 0:02:47.7]} 6... Qb6 {[%clk 0:02:48.3]}
7. Be3 {[%clk 0:02:41.5]} 7... Qxb2 {[%clk 0:02:44.4]} 8. Nbd2 {[%clk
0:02:42.2]} 8... Qxc3 {[%clk 0:02:42.7]} 9. Rc1 {[%clk 0:02:32]} 9... Qb4 {[%clk
0:02:27.2]} 10. Rb1 {[%clk 0:02:25.1]} 10... Qa3 {[%clk 0:02:11.5]} 11. Rxb7
{[%clk 0:02:17.3]} 11... cxd4 {[%clk 0:02:10.2]} 12. Bb5 {[%clk 0:02:06.4]}
12... Rc8 {[%clk 0:01:51.3]} 13. Qc2 {[%clk 0:01:31]} 13... Qc5 {[%clk
0:01:34.5]} 14. Qxc5 {[%clk 0:01:11.9]} 14... Bxc5 {[%clk 0:01:34.3]} 15. Bxd4
{[%clk 0:01:01.4]} 15... Bb4 {[%clk 0:00:58.2]} 16. O-O {[%clk 0:00:09.6]} 16...
Ne7 {[%clk 0:00:46.9]} 17. Rc1 {[%clk 0:00:09.2]} 17... O-O {[%clk 0:00:43.1]}
18. Bxc6 {[%clk 0:00:09.2]} 18... Rxc6 {[%clk 0:00:40.4]} 19. Rxc6 {[%clk
0:00:04.3]} 19... Nxc6 {[%clk 0:00:40.4]} 20. Bxa7 {[%clk 0:00:03.9]} 20... Ra8
{[%clk 0:00:33.3]} 21. Rb6 {[%clk 0:00:03]} 21... Bxd2 {[%clk 0:00:20.4]} 22.
Nxd2 {[%clk 0:00:02.3]} 22... Nxa7 {[%clk 0:00:17.4]} 23. a4 {[%clk 0:00:02.2]}
23... Nc8 {[%clk 0:00:13.9]} 24. Rc6 {[%clk 0:00:02.7]} 24... Kf8 {[%clk
0:00:14]} 25. Nb3 {[%clk 0:00:02.5]} 25... Ke7 {[%clk 0:00:14.2]} 26. Nc5 {[%clk
0:00:02.3]} 26... Be2 {[%clk 0:00:12.2]} 27. Rc7+ {[%clk 0:00:02.6]} 27... Ke8
{[%clk 0:00:12.1]} 0-1

[Event "Early-Titled-Tuesday-Blitz-February-13-2024"]
[Site "Chess.com"]
[Date "2024.02.13"]
[Round "9"]
[White "Schattman"]
[Black "sergeikim"]
[Result "1-0"]
[WhiteElo "2429"]
[BlackElo "2608"]
[TimeControl "180+1"]
[EndTime "9:48:03 PST"]
[Termination "Schattman won on time"]

1. f4 {[%clk 0:03:00.9]} 1... d5 {[%clk 0:02:55.4]} 2. Nf3 {[%clk 0:03:00.1]}
2... c5 {[%clk 0:02:55.4]} 3. g3 {[%clk 0:02:59.7]} 3... Nc6 {[%clk 0:02:55.4]}
4. Bg2 {[%clk 0:03:00.2]} 4... g6 {[%clk 0:02:55.7]} 5. O-O {[%clk 0:02:55.8]}
5... Bg7 {[%clk 0:02:55.5]} 6. d3 {[%clk 0:02:56.2]} 6... Nf6 {[%clk 0:02:53.6]}
7. Ne5 {[%clk 0:02:56.3]} 7... Bd7 {[%clk 0:02:49.8]} 8. Nxd7 {[%clk 0:02:50.8]}
8... Qxd7 {[%clk 0:02:49.5]} 9. c3 {[%clk 0:02:48]} 9... O-O {[%clk 0:02:47.7]}
10. h3 {[%clk 0:02:47.6]} 10... d4 {[%clk 0:02:28.3]} 11. c4 {[%clk 0:02:45.6]}
11... Rae8 {[%clk 0:02:23.2]} 12. a3 {[%clk 0:02:41.7]} 12... e5 {[%clk
0:02:18]} 13. fxe5 {[%clk 0:02:35.8]} 13... Nxe5 {[%clk 0:02:16.7]} 14. b4
{[%clk 0:02:35.2]} 14... b6 {[%clk 0:02:09.3]} 15. Nd2 {[%clk 0:02:31.6]} 15...
Qc7 {[%clk 0:01:58.1]} 16. Ne4 {[%clk 0:02:24]} 16... Nxe4 {[%clk 0:01:55.8]}
17. Bxe4 {[%clk 0:02:24]} 17... f5 {[%clk 0:01:49.7]} 18. Bd5+ {[%clk
0:02:16.1]} 18... Kh8 {[%clk 0:01:49.4]} 19. Bf4 {[%clk 0:02:15.9]} 19... Qe7
{[%clk 0:01:44.1]} 20. Qd2 {[%clk 0:02:12.2]} 20... Nf7 {[%clk 0:01:41.9]} 21.
Bxf7 {[%clk 0:02:06]} 21... Rxf7 {[%clk 0:01:32.1]} 22. Rae1 {[%clk 0:02:05]}
22... Qd7 {[%clk 0:01:28.1]} 23. bxc5 {[%clk 0:01:52.9]} 23... bxc5 {[%clk
0:01:27.5]} 24. Qa5 {[%clk 0:01:43.7]} 24... Rfe7 {[%clk 0:01:21.3]} 25. Qxc5
{[%clk 0:01:33.4]} 25... Rxe2 {[%clk 0:01:20.5]} 26. Rxe2 {[%clk 0:01:33.9]}
26... Rxe2 {[%clk 0:01:20.6]} 27. Rb1 {[%clk 0:01:14.7]} 27... Re8 {[%clk
0:01:01.7]} 28. Qd5 {[%clk 0:01:13]} 28... Qe7 {[%clk 0:00:59.9]} 29. c5 {[%clk
0:01:05.3]} 29... Qe2 {[%clk 0:00:54.5]} 30. Qd7 {[%clk 0:01:03.6]} 30... Rg8
{[%clk 0:00:46.2]} 31. c6 {[%clk 0:01:00.9]} 31... Qxd3 {[%clk 0:00:45.6]} 32.
Rf1 {[%clk 0:00:59.7]} 32... g5 {[%clk 0:00:43.4]} 33. Bd6 {[%clk 0:00:55.6]}
33... f4 {[%clk 0:00:40.8]} 34. gxf4 {[%clk 0:00:51.7]} 34... Qg3+ {[%clk
0:00:36.7]} 35. Kh1 {[%clk 0:00:51]} 35... Qd3 {[%clk 0:00:31.4]} 36. Rg1 {[%clk
0:00:48]} 36... Qf3+ {[%clk 0:00:30]} 37. Kh2 {[%clk 0:00:47.4]} 37... g4 {[%clk
0:00:13]} 38. Rxg4 {[%clk 0:00:43.1]} 38... d3 {[%clk 0:00:10.5]} 39. c7 {[%clk
0:00:42.8]} 39... Qf2+ {[%clk 0:00:06.4]} 40. Rg2 {[%clk 0:00:41.9]} 1-0

[Event "Early-Titled-Tuesday-Blitz-February-13-2024"]
[Site "Chess.com"]
[Date "2024.02.13"]
[Round "9"]
[White "Alblooshi_Hamad"]
[Black "verrbaa"]
[Result "0-1"]
[WhiteElo "2250"]
[BlackElo "2480"]
[TimeControl "180+1"]
[EndTime "9:48:05 PST"]
[Termination "verrbaa won by checkmate"]

1. d4 {[%clk 0:03:00.9]} 1... Nf6 {[%clk 0:02:59.7]} 2. c4 {[%clk 0:03:01.4]}
2... e6 {[%clk 0:02:58.7]} 3. Nc3 {[%clk 0:03:01.8]} 3... Bb4 {[%clk 0:02:58.7]}
4. Qc2 {[%clk 0:03:02.1]} 4... d5 {[%clk 0:02:58.3]} 5. cxd5 {[%clk 0:03:01.5]}
5... exd5 {[%clk 0:02:58]} 6. Bg5 {[%clk 0:03:01.8]} 6... h6 {[%clk 0:02:56]} 7.
Bh4 {[%clk 0:03:01.9]} 7... g5 {[%clk 0:02:36.7]} 8. Bg3 {[%clk 0:03:01.2]} 8...
Ne4 {[%clk 0:02:37.3]} 9. e3 {[%clk 0:03:01.4]} 9... Nd7 {[%clk 0:02:15.6]} 10.
Bd3 {[%clk 0:02:58.6]} 10... Ndf6 {[%clk 0:02:14.9]} 11. Ne2 {[%clk 0:02:51]}
11... Nxg3 {[%clk 0:01:59.5]} 12. Nxg3 {[%clk 0:02:47.5]} 12... c6 {[%clk
0:01:57.6]} 13. O-O-O {[%clk 0:02:38.1]} 13... Be6 {[%clk 0:01:56]} 14. f3
{[%clk 0:02:34.9]} 14... Qc7 {[%clk 0:01:46.8]} 15. e4 {[%clk 0:02:30.6]} 15...
Bxc3 {[%clk 0:01:46.4]} 16. Qxc3 {[%clk 0:01:58.4]} 16... O-O-O {[%clk
0:01:40.3]} 17. Kb1 {[%clk 0:01:54.2]} 17... Kb8 {[%clk 0:01:13.2]} 18. e5
{[%clk 0:01:54.1]} 18... Nd7 {[%clk 0:01:13]} 19. Nf5 {[%clk 0:01:52.3]} 19...
c5 {[%clk 0:01:06.7]} 20. Nd6 {[%clk 0:01:47.6]} 20... a6 {[%clk 0:00:57.5]} 21.
Rc1 {[%clk 0:01:47.1]} 21... c4 {[%clk 0:00:49.8]} 22. Bf5 {[%clk 0:01:36.6]}
22... Nb6 {[%clk 0:00:47.6]} 23. Qb4 {[%clk 0:01:20.1]} 23... Rxd6 {[%clk
0:00:41.1]} 24. exd6 {[%clk 0:01:19.9]} 24... Bxf5+ {[%clk 0:00:41.4]} 25. Ka1
{[%clk 0:01:19]} 25... Qc6 {[%clk 0:00:41.7]} 26. Rce1 {[%clk 0:01:16.7]} 26...
Be6 {[%clk 0:00:41.6]} 27. g3 {[%clk 0:01:13.7]} 27... Rd8 {[%clk 0:00:40.5]}
28. f4 {[%clk 0:01:14.2]} 28... Qxd6 {[%clk 0:00:38.6]} 29. Qd2 {[%clk
0:01:12.3]} 29... gxf4 {[%clk 0:00:33]} 30. gxf4 {[%clk 0:01:12.5]} 30... Na4
{[%clk 0:00:32.3]} 31. Rhf1 {[%clk 0:01:08.8]} 31... Rc8 {[%clk 0:00:31.2]} 32.
f5 {[%clk 0:01:08.8]} 32... c3 {[%clk 0:00:23]} 33. bxc3 {[%clk 0:01:09.1]}
33... Bd7 {[%clk 0:00:23.6]} 34. Rc1 {[%clk 0:01:02.7]} 34... Bb5 {[%clk
0:00:23]} 35. Rfe1 {[%clk 0:00:58.4]} 35... Qa3 {[%clk 0:00:22.6]} 36. Re3
{[%clk 0:00:51.1]} 36... Bc4 {[%clk 0:00:20.4]} 37. Re7 {[%clk 0:00:42.5]} 37...
Qxe7 {[%clk 0:00:19]} 38. Qc2 {[%clk 0:00:38.2]} 38... Qa3 {[%clk 0:00:17.7]}
39. Qd2 {[%clk 0:00:34.4]} 39... Bb5 {[%clk 0:00:17.7]} 40. Qe1 {[%clk
0:00:30.7]} 40... Rxc3 {[%clk 0:00:15.4]} 41. Rxc3 {[%clk 0:00:29.1]} 41... Qb2#
{[%clk 0:00:15.6]} 0-1

[Event "Early-Titled-Tuesday-Blitz-February-13-2024"]
[Site "Chess.com"]
[Date "2024.02.13"]
[Round "9"]
[White "AndresDelgado77"]
[Black "Roman_Ovetchkin"]
[Result "0-1"]
[WhiteElo "2352"]
[BlackElo "2605"]
[TimeControl "180+1"]
[EndTime "9:48:05 PST"]
[Termination "Roman_Ovetchkin won on time"]

1. e4 {[%clk 0:02:59.9]} 1... c6 {[%clk 0:02:58.8]} 2. d4 {[%clk 0:02:59]} 2...
d5 {[%clk 0:02:59.7]} 3. Nc3 {[%clk 0:02:59.5]} 3... dxe4 {[%clk 0:03:00]} 4.
Nxe4 {[%clk 0:03:00]} 4... Nf6 {[%clk 0:03:00.8]} 5. Nxf6+ {[%clk 0:02:55.8]}
5... exf6 {[%clk 0:03:01.7]} 6. c3 {[%clk 0:02:56.4]} 6... Bd6 {[%clk
0:03:01.5]} 7. Bd3 {[%clk 0:02:56.7]} 7... O-O {[%clk 0:03:00.8]} 8. Qc2 {[%clk
0:02:57.3]} 8... Re8+ {[%clk 0:03:00.8]} 9. Ne2 {[%clk 0:02:57.8]} 9... c5
{[%clk 0:02:47.1]} 10. Bxh7+ {[%clk 0:02:46.5]} 10... Kh8 {[%clk 0:02:45.9]} 11.
Be3 {[%clk 0:02:46.7]} 11... cxd4 {[%clk 0:02:38.6]} 12. Nxd4 {[%clk 0:02:40.6]}
12... Bf4 {[%clk 0:01:50.8]} 13. O-O-O {[%clk 0:02:24.6]} 13... Bxe3+ {[%clk
0:01:50.7]} 14. fxe3 {[%clk 0:02:24.3]} 14... Qa5 {[%clk 0:01:51.1]} 15. Bf5
{[%clk 0:01:57.1]} 15... Qxa2 {[%clk 0:01:38.7]} 16. Bxc8 {[%clk 0:01:46.7]}
16... Rxc8 {[%clk 0:01:36.7]} 17. Qe4 {[%clk 0:01:34.5]} 17... Nc6 {[%clk
0:01:27.9]} 18. Nf5 {[%clk 0:01:29.7]} 18... Qe6 {[%clk 0:01:05.6]} 19. Qh4+
{[%clk 0:01:02.9]} 19... Kg8 {[%clk 0:01:04.9]} 20. e4 {[%clk 0:01:02.7]} 20...
Rd8 {[%clk 0:00:57.1]} 21. Rdf1 {[%clk 0:00:33.8]} 21... Ne5 {[%clk 0:00:50.6]}
22. Nd4 {[%clk 0:00:28.4]} 22... Rxd4 {[%clk 0:00:45.9]} 23. cxd4 {[%clk
0:00:27.9]} 23... Qc4+ {[%clk 0:00:46]} 24. Kb1 {[%clk 0:00:27.7]} 24... Qd3+
{[%clk 0:00:46.2]} 25. Ka2 {[%clk 0:00:21.5]} 25... Qxd4 {[%clk 0:00:45.7]} 26.
Qf2 {[%clk 0:00:18]} 26... Qa4+ {[%clk 0:00:44.4]} 27. Kb1 {[%clk 0:00:18]}
27... Rc8 {[%clk 0:00:39.6]} 28. Qe2 {[%clk 0:00:14]} 28... Qb3 {[%clk
0:00:27.6]} 29. Rc1 {[%clk 0:00:11.9]} 29... Nc4 {[%clk 0:00:25.5]} 30. Rc3
{[%clk 0:00:05.1]} 30... Na3+ {[%clk 0:00:24.4]} 31. Ka1 {[%clk 0:00:01.6]}
31... Rxc3 {[%clk 0:00:23.9]} 32. bxc3 {[%clk 0:00:02]} 32... Nc2+ {[%clk
0:00:24.5]} 0-1

[Event "Early-Titled-Tuesday-Blitz-February-13-2024"]
[Site "Chess.com"]
[Date "2024.02.13"]
[Round "9"]
[White "TregubovP"]
[Black "SergioMoralesG"]
[Result "1-0"]
[WhiteElo "2680"]
[BlackElo "2497"]
[TimeControl "180+1"]
[EndTime "9:48:06 PST"]
[Termination "TregubovP won by resignation"]

1. e4 {[%clk 0:03:00.9]} 1... c5 {[%clk 0:02:38.6]} 2. Nf3 {[%clk 0:03:00.4]}
2... e6 {[%clk 0:02:38.7]} 3. c3 {[%clk 0:02:59.9]} 3... Nf6 {[%clk 0:02:38.4]}
4. e5 {[%clk 0:02:58.8]} 4... Nd5 {[%clk 0:02:39]} 5. d4 {[%clk 0:02:59.4]} 5...
cxd4 {[%clk 0:02:39.9]} 6. cxd4 {[%clk 0:02:59.2]} 6... d6 {[%clk 0:02:40.5]} 7.
Bc4 {[%clk 0:02:59]} 7... Nc6 {[%clk 0:02:40.8]} 8. O-O {[%clk 0:02:59.2]} 8...
Be7 {[%clk 0:02:40.9]} 9. Qe2 {[%clk 0:02:58.5]} 9... O-O {[%clk 0:02:39]} 10.
Rd1 {[%clk 0:02:58.3]} 10... Na5 {[%clk 0:02:31.5]} 11. Bd3 {[%clk 0:02:58.3]}
11... Nb4 {[%clk 0:02:31.7]} 12. Nc3 {[%clk 0:02:56.9]} 12... Nxd3 {[%clk
0:02:30]} 13. Rxd3 {[%clk 0:02:57.5]} 13... b6 {[%clk 0:02:24.3]} 14. b4 {[%clk
0:02:54.4]} 14... Nc6 {[%clk 0:02:18.9]} 15. a3 {[%clk 0:02:44.8]} 15... dxe5
{[%clk 0:02:08.8]} 16. dxe5 {[%clk 0:02:43]} 16... Qc7 {[%clk 0:02:08.8]} 17.
Nb5 {[%clk 0:02:38.1]} 17... Qb8 {[%clk 0:02:05.3]} 18. Nd6 {[%clk 0:02:34.4]}
18... Bb7 {[%clk 0:01:44.4]} 19. Bg5 {[%clk 0:02:28.3]} 19... Bxg5 {[%clk
0:01:24.9]} 20. Nxg5 {[%clk 0:02:27.3]} 20... h6 {[%clk 0:01:24.6]} 21. Ngxf7
{[%clk 0:01:53.6]} 21... Rxf7 {[%clk 0:01:24.7]} 22. Nxf7 {[%clk 0:01:54.2]}
22... Kxf7 {[%clk 0:01:25.6]} 23. Rd7+ {[%clk 0:01:44]} 23... Kg8 {[%clk
0:01:25.6]} 24. Rad1 {[%clk 0:01:13.2]} 24... Nxe5 {[%clk 0:01:05.9]} 25. Rxb7
{[%clk 0:00:51.3]} 25... Qxb7 {[%clk 0:01:02.6]} 26. Qxe5 {[%clk 0:00:51]} 26...
Qf7 {[%clk 0:00:52.5]} 27. Rd6 {[%clk 0:00:34]} 27... Re8 {[%clk 0:00:52.2]} 28.
h3 {[%clk 0:00:31.4]} 28... Rf8 {[%clk 0:00:28.8]} 29. Qxe6 {[%clk 0:00:28]}
29... Qxe6 {[%clk 0:00:28.8]} 30. Rxe6 {[%clk 0:00:28.6]} 30... Kf7 {[%clk
0:00:29]} 31. Rc6 {[%clk 0:00:27.5]} 31... Ra8 {[%clk 0:00:25.6]} 32. Rc7+
{[%clk 0:00:25.3]} 32... Kf6 {[%clk 0:00:25.2]} 33. a4 {[%clk 0:00:24.7]} 33...
g6 {[%clk 0:00:20.7]} 34. g4 {[%clk 0:00:21.9]} 34... Kg5 {[%clk 0:00:20]} 35.
Kg2 {[%clk 0:00:21.6]} 35... a6 {[%clk 0:00:16.5]} 36. Kg3 {[%clk 0:00:21.5]}
36... b5 {[%clk 0:00:12.2]} 37. axb5 {[%clk 0:00:19.6]} 37... axb5 {[%clk
0:00:12.4]} 38. Rc5+ {[%clk 0:00:20.2]} 38... Kf6 {[%clk 0:00:12.7]} 39. Rxb5
{[%clk 0:00:20.4]} 1-0

[Event "Early-Titled-Tuesday-Blitz-February-13-2024"]
[Site "Chess.com"]
[Date "2024.02.13"]
[Round "9"]
[White "profedechess93"]
[Black "Radzio1987"]
[Result "1-0"]
[WhiteElo "2667"]
[BlackElo "2900"]
[TimeControl "180+1"]
[EndTime "9:48:07 PST"]
[Termination "profedechess93 won by checkmate"]

1. e4 {[%clk 0:03:00.8]} 1... c6 {[%clk 0:02:57.7]} 2. d4 {[%clk 0:03:00.3]}
2... d5 {[%clk 0:02:57.3]} 3. Nc3 {[%clk 0:03:01]} 3... dxe4 {[%clk 0:02:57.1]}
4. Nxe4 {[%clk 0:03:01.9]} 4... Nd7 {[%clk 0:02:57.7]} 5. Bc4 {[%clk 0:03:01.2]}
5... Ngf6 {[%clk 0:02:56.7]} 6. Ng5 {[%clk 0:03:01.5]} 6... e6 {[%clk
0:02:56.6]} 7. Qe2 {[%clk 0:03:01.7]} 7... Nb6 {[%clk 0:02:50]} 8. Bb3 {[%clk
0:03:01.8]} 8... h6 {[%clk 0:02:47.3]} 9. N5f3 {[%clk 0:03:01.8]} 9... c5 {[%clk
0:02:47.7]} 10. dxc5 {[%clk 0:03:01.8]} 10... Bxc5 {[%clk 0:02:45]} 11. Ne5
{[%clk 0:03:02.3]} 11... O-O {[%clk 0:02:34.8]} 12. Ngf3 {[%clk 0:03:02.1]}
12... Nbd7 {[%clk 0:02:34.8]} 13. g4 {[%clk 0:02:14.1]} 13... Nxe5 {[%clk
0:02:17.4]} 14. Nxe5 {[%clk 0:02:15]} 14... Bd4 {[%clk 0:01:53.8]} 15. c3 {[%clk
0:01:48]} 15... Bxe5 {[%clk 0:01:30]} 16. Qxe5 {[%clk 0:01:48.9]} 16... Nd7
{[%clk 0:00:55.4]} 17. Qg3 {[%clk 0:01:48.6]} 17... Nc5 {[%clk 0:00:54.2]} 18.
Bc2 {[%clk 0:01:47.2]} 18... Qd5 {[%clk 0:00:45.8]} 19. Rg1 {[%clk 0:01:43.4]}
19... f6 {[%clk 0:00:33.8]} 20. Bf4 {[%clk 0:01:07.4]} 20... e5 {[%clk
0:00:30.8]} 21. Bd2 {[%clk 0:01:07.4]} 21... Be6 {[%clk 0:00:29.6]} 22. Qe3
{[%clk 0:00:41.8]} 22... Rad8 {[%clk 0:00:27.2]} 23. h4 {[%clk 0:00:35.3]} 23...
e4 {[%clk 0:00:23.6]} 24. g5 {[%clk 0:00:31.4]} 24... fxg5 {[%clk 0:00:23.8]}
25. hxg5 {[%clk 0:00:32.3]} 25... Rf3 {[%clk 0:00:22.1]} 26. Qd4 {[%clk
0:00:27.5]} 26... h5 {[%clk 0:00:15.6]} 27. Qxd5 {[%clk 0:00:25.2]} 27... Rxd5
{[%clk 0:00:15.7]} 28. Be3 {[%clk 0:00:25.9]} 28... Nd3+ {[%clk 0:00:15.6]} 29.
Bxd3 {[%clk 0:00:26]} 29... exd3 {[%clk 0:00:16.5]} 30. Kd2 {[%clk 0:00:25.9]}
30... Bf5 {[%clk 0:00:14.7]} 31. Rae1 {[%clk 0:00:25.7]} 31... a6 {[%clk
0:00:13.6]} 32. Bd4 {[%clk 0:00:25.9]} 32... Rd7 {[%clk 0:00:12.8]} 33. g6
{[%clk 0:00:23]} 33... Rxd4 {[%clk 0:00:04.7]} 34. Re8# {[%clk 0:00:22.8]} 1-0

[Event "Early-Titled-Tuesday-Blitz-February-13-2024"]
[Site "Chess.com"]
[Date "2024.02.13"]
[Round "9"]
[White "Irishchessman16"]
[Black "Kopytkin"]
[Result "1-0"]
[WhiteElo "2533"]
[BlackElo "2388"]
[TimeControl "180+1"]
[EndTime "9:48:08 PST"]
[Termination "Irishchessman16 won on time"]

1. e4 {[%clk 0:03:00.9]} 1... Nf6 {[%clk 0:02:59.4]} 2. e5 {[%clk 0:02:59.7]}
2... Nd5 {[%clk 0:02:58.6]} 3. d4 {[%clk 0:02:59.9]} 3... d6 {[%clk 0:02:58.9]}
4. exd6 {[%clk 0:03:00.5]} 4... cxd6 {[%clk 0:02:58.9]} 5. Nf3 {[%clk
0:02:58.4]} 5... g6 {[%clk 0:02:59]} 6. c4 {[%clk 0:02:56.9]} 6... Nb6 {[%clk
0:02:58.5]} 7. Nc3 {[%clk 0:02:56.4]} 7... Bg7 {[%clk 0:02:59]} 8. h3 {[%clk
0:02:55.5]} 8... O-O {[%clk 0:02:59]} 9. Be2 {[%clk 0:02:53.5]} 9... Bf5 {[%clk
0:02:54.8]} 10. O-O {[%clk 0:02:49.8]} 10... d5 {[%clk 0:02:53.2]} 11. c5 {[%clk
0:02:40.9]} 11... Nc4 {[%clk 0:02:46.1]} 12. b3 {[%clk 0:02:30.9]} 12... Na5
{[%clk 0:02:45.7]} 13. Bf4 {[%clk 0:02:15.2]} 13... Nbc6 {[%clk 0:02:41]} 14. a3
{[%clk 0:02:13.9]} 14... Be4 {[%clk 0:02:04.9]} 15. Be3 {[%clk 0:01:50.7]} 15...
Bxf3 {[%clk 0:02:02.2]} 16. Bxf3 {[%clk 0:01:50.2]} 16... e6 {[%clk 0:02:03.1]}
17. Ne2 {[%clk 0:01:35.1]} 17... b6 {[%clk 0:01:57.7]} 18. Rc1 {[%clk 0:01:20]}
18... Rc8 {[%clk 0:01:52]} 19. Qd3 {[%clk 0:01:11.8]} 19... Qh4 {[%clk
0:01:17.6]} 20. cxb6 {[%clk 0:00:54.7]} 20... axb6 {[%clk 0:01:17]} 21. Rfd1
{[%clk 0:00:38.5]} 21... Rfd8 {[%clk 0:01:08.1]} 22. Qb5 {[%clk 0:00:33.1]}
22... Qe7 {[%clk 0:00:30.5]} 23. b4 {[%clk 0:00:25.6]} 23... Na7 {[%clk
0:00:23.2]} 24. Qxb6 {[%clk 0:00:20]} 24... Nc4 {[%clk 0:00:23.3]} 25. Qa6
{[%clk 0:00:18.9]} 25... Qd7 {[%clk 0:00:09]} 26. Nc3 {[%clk 0:00:16.5]} 26...
Nc6 {[%clk 0:00:06.6]} 27. Qa4 {[%clk 0:00:09.6]} 27... Ra8 {[%clk 0:00:04.2]}
28. Qb3 {[%clk 0:00:09.6]} 28... Rxa3 {[%clk 0:00:04.1]} 29. Qb1 {[%clk
0:00:09.8]} 29... Rb8 {[%clk 0:00:02.6]} 30. b5 {[%clk 0:00:09.3]} 1-0

[Event "Early-Titled-Tuesday-Blitz-February-13-2024"]
[Site "Chess.com"]
[Date "2024.02.13"]
[Round "9"]
[White "JiiHart"]
[Black "fabianvivasz"]
[Result "0-1"]
[WhiteElo "2153"]
[BlackElo "2353"]
[TimeControl "180+1"]
[EndTime "9:48:08 PST"]
[Termination "fabianvivasz won on time"]

1. e4 {[%clk 0:03:00.9]} 1... e5 {[%clk 0:02:56.6]} 2. Nf3 {[%clk 0:03:00.6]}
2... Nc6 {[%clk 0:02:56.1]} 3. Bc4 {[%clk 0:03:00]} 3... Nf6 {[%clk 0:02:56]} 4.
d3 {[%clk 0:02:58.7]} 4... Bc5 {[%clk 0:02:55.8]} 5. c3 {[%clk 0:02:58.8]} 5...
O-O {[%clk 0:02:56.2]} 6. O-O {[%clk 0:02:58.7]} 6... d5 {[%clk 0:02:56.9]} 7.
exd5 {[%clk 0:02:57]} 7... Nxd5 {[%clk 0:02:57.8]} 8. b4 {[%clk 0:02:44.3]} 8...
Be7 {[%clk 0:02:57.4]} 9. b5 {[%clk 0:02:42.1]} 9... Na5 {[%clk 0:02:57.3]} 10.
Nxe5 {[%clk 0:02:41.1]} 10... Nxc4 {[%clk 0:02:43]} 11. dxc4 {[%clk 0:02:35.7]}
11... Nb6 {[%clk 0:02:42.3]} 12. Qxd8 {[%clk 0:01:47.4]} 12... Rxd8 {[%clk
0:02:40.1]} 13. Nd2 {[%clk 0:01:46]} 13... Be6 {[%clk 0:02:27]} 14. a4 {[%clk
0:01:39.6]} 14... Bf6 {[%clk 0:02:15.6]} 15. f4 {[%clk 0:01:23.4]} 15... Bxe5
{[%clk 0:02:10.3]} 16. fxe5 {[%clk 0:01:23.3]} 16... Nxc4 {[%clk 0:02:10.9]} 17.
Nxc4 {[%clk 0:01:03.6]} 17... Bxc4 {[%clk 0:02:11.8]} 18. Rf4 {[%clk 0:00:46.6]}
18... Rd1+ {[%clk 0:02:00.6]} 19. Kf2 {[%clk 0:00:45.2]} 19... Be6 {[%clk
0:01:58.8]} 20. Rd4 {[%clk 0:00:32.7]} 20... Rxd4 {[%clk 0:01:41.3]} 21. cxd4
{[%clk 0:00:32.8]} 21... a6 {[%clk 0:01:40.4]} 22. Bb2 {[%clk 0:00:30.4]} 22...
axb5 {[%clk 0:01:14.3]} 23. axb5 {[%clk 0:00:30.4]} 23... Rxa1 {[%clk
0:01:15.2]} 24. Bxa1 {[%clk 0:00:30.8]} 24... b6 {[%clk 0:01:14.8]} 25. Bc3
{[%clk 0:00:18.1]} 25... Kf8 {[%clk 0:01:06.5]} 26. Bb4+ {[%clk 0:00:17.9]}
26... Ke8 {[%clk 0:01:06.2]} 27. Ke3 {[%clk 0:00:18.2]} 27... Bc4 {[%clk
0:01:06.3]} 28. Ke4 {[%clk 0:00:17.8]} 28... Bxb5 {[%clk 0:01:06.4]} 29. d5
{[%clk 0:00:18.2]} 29... Kd7 {[%clk 0:01:00.9]} 30. g3 {[%clk 0:00:18.5]} 30...
Bf1 {[%clk 0:00:55.2]} 31. h4 {[%clk 0:00:18.2]} 31... c5 {[%clk 0:00:46.7]} 32.
dxc6+ {[%clk 0:00:17.5]} 32... Kxc6 {[%clk 0:00:46.7]} 33. g4 {[%clk 0:00:14.9]}
33... Kb5 {[%clk 0:00:45.7]} 34. Bf8 {[%clk 0:00:12.1]} 34... g6 {[%clk
0:00:45.7]} 35. h5 {[%clk 0:00:09]} 35... Kc4 {[%clk 0:00:42.7]} 36. hxg6 {[%clk
0:00:08.7]} 36... hxg6 {[%clk 0:00:43.6]} 37. g5 {[%clk 0:00:09]} 37... b5
{[%clk 0:00:43.4]} 38. Ke3 {[%clk 0:00:09]} 38... Kc3 {[%clk 0:00:42.7]} 39. Bc5
{[%clk 0:00:04.2]} 39... b4 {[%clk 0:00:41]} 40. Bd4+ {[%clk 0:00:03.6]} 40...
Kc2 {[%clk 0:00:41.3]} 41. Kf2 {[%clk 0:00:02.1]} 41... Bc4 {[%clk 0:00:41]} 42.
Ke3 {[%clk 0:00:01.1]} 42... b3 {[%clk 0:00:41.4]} 0-1